[Event "Olomouc Chess Summer-IM 2022"]
[Site "Olomouc"]
[Date "2022.08.14"]
[Round "3.12"]
[White "Saypuri Srithan"]
[Black "Nemec, Jachym"]
[Result "1/2-1/2"]
[ECO "B90"]
[WhiteElo "1923"]
[BlackElo "2357"]
[Annotator "TA"]
[PlyCount "96"]
[EventDate "2022.08.10"]
[EventCountry "CZE"]
[SourceTitle "playchess.com"]
[Source "ChessBase"]
[SourceQuality "1"]
[TimeControl "40/5400+30:1800+30"]

{[%evp 12,96,29,0,14,9,8,16,33,0,25,0,0,0,39,17,69,17,59,47,37,43,43,59,41,54,75,66,58,57,89,91,82,98,147,122,110,46,47,51,42,46,51,79,73,48,152,101,147,133,121,-101,121,0,539,539,531,-387,495,247,247,239,212,222,222,168,168,182,160,184,172,181,148,138,157,157,157,27,29,0,171,0,174,102,102,102,109]} 1. e4 {[%emt 0:00:25]} c5 {[%emt 0:00:04]} 2. Nf3 {[%emt 0:00:06]} d6 {[%emt 0:00:05]} 3. d4 {[%emt 0:00:04]} cxd4 {[%emt 0:00:04]} 4. Nxd4 {[%emt 0:00:06]} Nf6 {[%emt 0:00:06]} 5. Nc3 {[%emt 0:00:08]} a6 {[%emt 0:00:05]} 6. h3 {[%emt 0:00:08]} e5 {[%emt 0:01:53]} 7. Nb3 {[%emt 0:00:05]} Be7 {[%emt 0:03:00] B90: Sicilian Najdorf: Unusual White 6th moves, 6 Be3 Ng4 and 6 Be3 e5.} 8. g4 {[%emt 0:00:06] is now debated instead of 8.Be3.} h6 {[%emt 0:00:10]} 9. Be3 {[%emt 0:00:50]} Nbd7 {[%emt 0:01:48] The position is equal.} 10. a4 {[%emt 0:00:12]} Nf8 {[%emt 0:04:58]} 11. Qd2 {[%emt 0:04:53]} Ng6 {[%emt 0:03:20]} 12. O-O-O {[%emt 0:06:29] [#]} Bd7 $146 ({Predecessor:} 12... Be6 13. f3 Nd7 14. Nd5 Bxd5 15. Qxd5 Qc7 16. Qc4 Qd8 17. Kb1 Rc8 18. Qd5 Qc7 19. c3 O-O 20. Qa5 Qc6 21. Qb4 Qc7 22. Qa5 {½-½ (22) Bacrot,E (2669)-Ragger,M (2669) Zagreb 2019}) 13. Kb1 {[%emt 0:15:17]} Bc6 {[%emt 0:16:36]} (13... b5 $11) 14. Bd3 {[%emt 0:07:21]} (14. f3 $14) 14... Nd7 {[%emt 0:01:40]} 15. a5 {[%emt 0:09:57]} Rc8 {[%emt 0:02:29]} 16. Nd5 {[%emt 0:03:23]} Bg5 {[%emt 0:07:49]} 17. Qb4 {[%emt 0:10:17]} Bxd5 {[%emt 0:11:59]} 18. exd5 {[%emt 0:00:16] Strongly threatening Bxg5.} Bxe3 {[%emt 0:06:53]} 19. fxe3 {[%emt 0:00:05]} Qc7 {[%emt 0:01:06]} 20. Nd2 {[%emt 0:17:50]} O-O {[%emt 0:06:51]} 21. Ne4 {[%emt 0:06:59]} Nc5 {[%emt 0:00:47]} 22. Nxc5 {[%emt 0:00:26]} Qxc5 {[%emt 0:00:30]} ({Better is} 22... dxc5 23. Qc4 e4 24. Bxe4 (24. Qxe4 Rcd8 $16) 24... Ne5) 23. Qe4 $1 $16 {[%emt 0:02:28]} ({Not} 23. Qxb7 $2 e4 24. Qb6 (24. Bxa6 $2 Qxc2+ 25. Ka2 Rb8 $19) (24. Bxe4 $2 Rb8 $19) 24... exd3 25. Qxc5 Rxc5 $19) 23... Rfe8 {[%emt 0:10:16]} ({Much worse is} 23... Qxa5 $6 24. h4 Rfe8 25. g5 $11) 24. h4 {[%emt 0:04:01]} (24. Rdf1 $16) 24... Nf8 $1 $14 {[%emt 0:01:51]} 25. Rdf1 {[%emt 0:02:30] Threatens to win with h5.} Qxa5 {[%emt 0:03:06]} 26. h5 {[%emt 0:03:02][%cal Og4g5] g5! is the strong threat.} Qd8 {[%emt 0:00:37]} 27. g5 $1 {[%emt 0:00:57]} Qxg5 {[%emt 0:00:58]} 28. Rhg1 $1 $36 {[%emt 0:02:02][%mdl 2048] White has good play.} Qe7 {[%emt 0:02:59]} (28... f5 $1 $14 29. Qf3 Qd8) 29. Rf2 {[%emt 0:02:35]} (29. Rg4 $142) 29... Rc7 {[%emt 0:01:40]} (29... Kh8 $142) 30. Rfg2 $1 $16 {[%emt 0:00:31] 0x0.002360e05ab2dp-1022s more active pieces.} f6 {[%emt 0:00:16]} 31. Rg4 $2 {[%emt 0:00:33] [#]} (31. Rxg7+ $16 Qxg7 32. Rxg7+ Rxg7 33. Qb4) 31... Qf7 $2 {[%emt 0:00:40]} (31... Qd8 $1 $17) 32. Qb4 {[%emt 0:00:16]} ({White should try} 32. Rxg7+ $16 Qxg7 33. Rxg7+ Rxg7 34. Qb4) 32... Qxd5 $2 {[%emt 0:02:05][%mdl 8192]} (32... Qxh5 $11 {and Black is okay.} 33. Qxd6 Rf7) 33. Bc4 $18 {[%emt 0:00:31][%mdl 64] Deflection} Rxc4 {[%emt 0:00:05]} 34. Rxg7+ {[%emt 0:00:32]} Kh8 {[%emt 0:00:04] [#]} 35. Rg8+ {[%emt 0:00:04]} (35. Qd2 $142 $3 {[%mdl 512]} Rc7 36. Qxd5 Rxg7 37. Rxg7 Kxg7 38. Qxb7+ Kg8 39. b4) 35... Qxg8 {[%emt 0:00:24]} 36. Rxg8+ {[%emt 0:00:03]} Kxg8 {[%emt 0:00:05]} 37. Qxc4+ {[%emt 0:00:03][%mdl 4096] Endgame KQ-KRN} Ne6 {[%emt 0:00:34]} 38. Qg4+ {[%emt 0:00:23]} Ng7 {[%emt 0:06:51]} 39. Qg6 {[%emt 0:02:05]} Re6 {[%emt 0:00:14]} 40. Qxh6 {[%emt 0:00:09] aiming for e4.} f5 {[%emt 0:00:09]} 41. Qg5 {[%emt 0:30:09][%mdl 1024] White has strong compensation.} Kh7 {[%emt 0:30:12] Inhibits h6.} 42. b3 {[%emt 0:02:39]} Rh6 {[%emt 0:03:05]} 43. Qe7 {[%emt 0:00:25]} b5 {[%emt 0:01:00]} 44. Qc7 {[%emt 0:00:00]} (44. Kc1 $16) 44... Rf6 $1 $11 {[%emt 0:00:00]} 45. Qe7 (45. c4 $11) 45... Rh6 $18 46. Qc7 $2 ({White should play} 46. Kb2 $18) 46... Re6 $2 (46... Rf6 $1 $11 {and Black has nothing to worry.}) 47. c4 (47. Kb2 $18) 47... bxc4 $16 48. bxc4 Kh6 {Weighted Error Value: White=0.40/Black=0.35} 1/2-1/2

[Event "Olomouc Chess Summer-IM 2022"]
[Site "Olomouc"]
[Date "2022.08.14"]
[Round "3.13"]
[White "Mannion, Stephen R"]
[Black "Mica, Marek"]
[Result "1/2-1/2"]
[ECO "B12"]
[WhiteElo "2232"]
[BlackElo "2304"]
[Annotator "TA"]
[PlyCount "38"]
[EventDate "2022.08.10"]
[EventCountry "CZE"]
[SourceTitle "playchess.com"]
[Source "ChessBase"]
[SourceQuality "1"]
[TimeControl "40/5400+30:1800+30"]

{[%evp 10,38,20,17,17,16,20,15,22,18,20,28,39,-7,75,55,70,56,216,208,206,208,211,209,216,173,195,54,53,46,87]} 1. e4 {[%emt 0:01:21]} c6 {[%emt 0:01:40]} 2. d4 {[%emt 0:00:08]} d5 {[%emt 0:00:06]} 3. e5 {[%emt 0:00:05]} Bf5 {[%emt 0:00:05]} 4. Nd2 {[%emt 0:00:07]} e6 {[%emt 0:00:19]} 5. Nb3 {[%emt 0:00:07]} Nd7 {[%emt 0:00:15]} 6. Nf3 {[%emt 0:00:09]} Ne7 {[%emt 0:00:17] B12: Caro-Kann: Advance Variation.} 7. Be2 {[%emt 0:00:22]} h6 {[%emt 0:00:10]} 8. O-O {[%emt 0:00:27]} g5 {[%emt 0:00:17] The position is equal.} 9. a4 {[%emt 0:01:22] 9.Bd2 is the recent fashion.} Bg7 {[%emt 0:00:09]} 10. a5 {[%emt 0:06:54]} O-O {[%emt 0:00:26]} 11. Ne1 {[%emt 0:16:07] [#]} (11. c3 $14) 11... Bg6 $146 {[%emt 0:01:52]} (11... c5 $11) ({Predecessor:} 11... c5 12. c3 cxd4 13. cxd4 f6 14. exf6 Nxf6 15. Nd3 Nc6 16. Be3 Ne4 17. Ndc5 Nxc5 18. Nxc5 {0-1 (47) Pijpers,A (2476)-Soors,S (2390) Amsterdam 2016}) 12. f4 {[%emt 0:09:00]} gxf4 {[%emt 0:01:27]} 13. Nd3 {[%emt 0:04:46] Against c5} c5 $2 {[%emt 0:09:55] [#]} (13... Bxd3 $14 14. Bxd3 (14. Qxd3 c5 $11) 14... Ng6) 14. Nbxc5 {[%emt 0:01:54]} Nxc5 {[%emt 0:00:35]} 15. Nxc5 Nc6 {[%emt 0:06:03]} 16. c3 {[%emt 0:31:23]} (16. Bxf4 Qe7 17. Qd2 b6) (16. Rxf4 Qc7) 16... Nxa5 {[%emt 0:02:33]} (16... b6 $2 17. axb6 axb6 18. Rxa8 Qxa8 19. Nd7 $18) 17. b4 {[%emt 0:01:05]} ({Don't take} 17. Rxf4 b6 $16) 17... b6 {[%emt 0:01:38]} 18. bxa5 {[%emt 0:02:45]} ({Less strong is} 18. Rxf4 bxc5 19. Rxa5 cxd4 20. cxd4 (20. Qxd4 Qc7 $17) 20... Qe7 $14) (18. Nd3 $18 f3 19. Rxf3 (19. bxa5 fxe2 20. Qxe2 Qc7 $14)) 18... bxc5 $14 {[%emt 0:00:27]} 19. Bxf4 {[%emt 0:00:48]} c4 {[%emt 0:05:36] Weighted Error Value: White=0.28 (precise) /Black=0.29 (precise)} 1/2-1/2

[Event "Olomouc Chess Summer-IM 2022"]
[Site "Olomouc"]
[Date "2022.08.14"]
[Round "3.14"]
[White "Biolek, Richard Jr."]
[Black "Shubin, Daniel"]
[Result "1-0"]
[ECO "C17"]
[WhiteElo "2437"]
[BlackElo "2120"]
[Annotator "TA"]
[PlyCount "57"]
[EventDate "2022.08.10"]
[EventCountry "CZE"]
[SourceTitle "playchess.com"]
[Source "ChessBase"]
[SourceQuality "1"]
[TimeControl "40/5400+30:1800+30"]

{[%evp 15,57,-35,32,17,33,32,29,31,40,44,43,41,44,43,47,45,60,60,66,67,68,50,63,68,93,78,150,148,134,117,227,203,310,303,293,318,302,297,677,677,732,730,731,707]} 1. e4 {[%emt 0:00:06]} e6 {[%emt 0:00:02]} 2. d4 {[%emt 0:00:24]} d5 {[%emt 0:00:04]} 3. Nc3 {[%emt 0:00:13]} Bb4 {[%emt 0:00:03]} 4. e5 {[%emt 0:00:08]} c5 {[%emt 0:00:03]} 5. Bd2 {[%emt 0:00:05]} Ne7 {[%emt 0:12:04]} 6. Nb5 {[%emt 0:00:47]} Bxd2+ {[%emt 0:00:59]} 7. Qxd2 {[%emt 0:00:03]} O-O {[%emt 0:00:53]} 8. f4 {[%emt 0:04:01]} cxd4 {[%emt 0:06:48]} (8... a6 $15 9. Nd6 cxd4) 9. Nf3 {[%emt 0:01:23] C17: French: 3 Nc3 Bb4 4 e5 c5 sidelines.} Qb6 {[%emt 0:02:29] [#]} 10. Qxd4 $146 {[%emt 0:04:18]} ({Predecessor:} 10. O-O-O Bd7 11. Nbxd4 Nbc6 12. Nxc6 Nxc6 13. Kb1 Rac8 14. h4 Na5 15. Qd4 Qxd4 16. Nxd4 Nc4 {½-½ (42) Zill,C (2159)-Nuber,K (2264) Bayern 2017}) 10... Qxd4 {[%emt 0:01:16]} 11. Nbxd4 {[%emt 0:00:42] White has an edge.} a6 {[%emt 0:07:27]} 12. Bd3 {[%emt 0:00:57]} Nbc6 {[%emt 0:00:16]} 13. Kd2 {[%emt 0:02:59]} Nxd4 {[%emt 0:00:36]} 14. Nxd4 {[%emt 0:00:03]} Nc6 {[%emt 0:00:59]} 15. c3 {[%emt 0:00:58]} f6 {[%emt 0:05:11]} 16. exf6 {[%emt 0:14:09]} gxf6 {[%emt 0:15:49]} 17. Rae1 {[%emt 0:01:43]} Kf7 {[%emt 0:03:13]} 18. g4 {[%emt 0:07:03][%cal Bg2g4,Bg4g5][%mdl 32] 0x0.001eba88efdfdp-1022s more active pieces. The black rooks are badly placed.} Rg8 {[%emt 0:02:16]} 19. Rhg1 {[%emt 0:03:48]} ({Much worse is} 19. Bxh7 Rg7 20. Nxc6 bxc6 $15) 19... Bd7 {[%emt 0:00:46]} 20. g5 {[%emt 0:00:50]} Rae8 {[%emt 0:06:50]} (20... Nxd4 $142 21. cxd4 f5) 21. Bxh7 $16 {[%emt 0:07:13]} Rh8 {[%emt 0:00:06]} 22. Nf3 {[%emt 0:04:37][%cal Og5f6]} e5 {[%emt 0:03:47] [#]} (22... fxg5 $16 {was called for.} 23. Nxg5+ Ke7) 23. gxf6 $1 $18 {[%emt 0:24:59]} Kxf6 {[%emt 0:01:45]} (23... e4 $142 24. Rg7+ Kxf6 25. Rxd7 exf3 26. Rxe8 (26. Rxb7 Na5 $11) 26... Rxe8) 24. fxe5+ {[%emt 0:01:15]} Ke7 {[%emt 0:06:18]} 25. Rg7+ {[%emt 0:05:09]} Kd8 {[%emt 0:00:12]} 26. e6 {[%emt 0:01:19]} Bxe6 {[%emt 0:01:49] [#]} (26... Rxe6 27. Rxe6 Bxe6) 27. Ng5 {[%emt 0:00:50] White is clearly winning.} Bg8 {[%emt 0:00:17]} 28. Rxe8+ {[%emt 0:00:07]} Kxe8 {[%emt 0:00:04]} 29. Rxg8+ {[%emt 0:00:21] Weighted Error Value: White=0.02 (flawless) /Black=0.41} 1-0

[Event "Olomouc Chess Summer-IM 2022"]
[Site "Olomouc"]
[Date "2022.08.14"]
[Round "3.15"]
[White "Wiley, Tom E"]
[Black "Camarena Jimenez, Rufino"]
[Result "0-1"]
[ECO "A45"]
[WhiteElo "2169"]
[BlackElo "2298"]
[Annotator "TA"]
[PlyCount "92"]
[EventDate "2022.08.10"]
[EventCountry "CZE"]
[SourceTitle "playchess.com"]
[Source "ChessBase"]
[SourceQuality "1"]
[TimeControl "40/5400+30:1800+30"]

{[%evp 9,92,-1,13,6,3,-10,-9,-7,0,0,0,0,21,0,46,33,54,59,12,6,14,17,30,0,9,0,0,0,0,0,0,-38,0,-50,-47,-59,-63,-64,-53,-68,-72,-70,-48,-185,-177,-295,-261,-256,-268,-265,-278,-275,-274,-266,-263,-266,-237,-246,-233,-232,-233,-288,-287,-312,-81,-97,-89,-122,-116,-152,-162,-153,-157,-166,-152,-320,-320,-352,-348,-431,-434,-1414,-1236,-1192,-1166]} 1. d4 {[%emt 0:00:01]} Nf6 {[%emt 0:00:10]} 2. Bg5 {[%emt 0:00:05]} d5 {[%emt 0:00:39]} 3. e3 {[%emt 0:00:06]} c5 {[%emt 0:00:58]} 4. Bxf6 {[%emt 0:00:06]} gxf6 {[%emt 0:00:14]} 5. dxc5 {[%emt 0:00:17]} e6 {[%emt 0:00:34]} 6. c4 {[%emt 0:00:36] D00: 1 d4 d5: Unusual lines.} dxc4 {[%emt 0:00:28]} 7. Nd2 {[%emt 0:00:19]} c3 {[%emt 0:04:41]} 8. bxc3 {[%emt 0:00:05] The position is equal.} Bxc5 {[%emt 0:00:30]} 9. Qh5 {[%emt 0:00:36]} Nd7 {[%emt 0:06:50]} 10. Ngf3 {[%emt 0:04:52][%cal Bg1f3,Bf3d4,Bd4b5][%mdl 32] [#]} Qc7 $146 {[%emt 0:06:30]} ({Predecessor:} 10... f5 11. Bb5 Qf6 12. Rb1 Qg7 13. Qh4 O-O 14. h3 Bb6 15. g4 Bd8 16. Qg3 Nf6 {½-½ (46) Wolf,B (2193)-Hamby,S (2129) FICGS email 2015}) 11. Be2 {[%emt 0:03:08]} Ne5 {[%emt 0:09:40]} (11... h6 $11) 12. O-O $14 {[%emt 0:21:11]} Bd7 {[%emt 0:04:50]} 13. Ne4 {[%emt 0:17:10]} Be7 {[%emt 0:00:45]} 14. Nd4 {[%emt 0:08:49]} Ng6 {[%emt 0:14:34]} 15. Nb5 {[%emt 0:03:56]} Qb8 {[%emt 0:08:23]} 16. Rfd1 {[%emt 0:01:50][%cal Od1d7]} Bc6 {[%emt 0:03:09]} 17. Ned6+ {[%emt 0:05:54] Pair of Knights!} Kf8 $1 {[%emt 0:02:46]} 18. Nc4 {[%emt 0:03:31]} Kg7 {[%emt 0:03:08]} 19. Nd4 {[%emt 0:03:02]} Ba4 {[%emt 0:01:25]} 20. Rd2 {[%emt 0:01:04]} (20. Rdb1 $5 {[%cal Re2f3]}) 20... Rd8 {[%emt 0:01:07][%cal Bh8d8,Bd8d5,Bd5c5][%mdl 32]} 21. Rb2 {[%emt 0:05:24]} ({White should play} 21. f4 $11) 21... Rd5 $15 {[%emt 0:01:17]} 22. Qh3 {[%emt 0:02:08]} Qc7 {[%emt 0:01:50]} 23. Rab1 {[%emt 0:02:59]} b6 {[%emt 0:01:01]} 24. Nb5 {[%emt 0:04:19]} Bxb5 {[%emt 0:11:58]} 25. Rxb5 {[%emt 0:00:06]} Rad8 {[%emt 0:00:10]} 26. R5b3 {[%emt 0:01:13] [#]} ({White should try} 26. a4 $15) 26... Rc5 $1 $19 {[%emt 0:00:49]} 27. Rb4 {[%emt 0:10:04]} (27. Nb2 $142) 27... Rc6 {[%emt 0:04:51]} 28. Ra4 {[%emt 0:00:41]} Rd5 {[%emt 0:00:44]} 29. Nb2 {[%emt 0:00:53]} Rxc3 {[%emt 0:00:39]} 30. Rc4 {[%emt 0:00:04]} Rxc4 {[%emt 0:01:02]} 31. Nxc4 {[%emt 0:00:01]} b5 {[%emt 0:04:11]} 32. e4 {[%emt 0:00:02]} Rc5 {[%emt 0:00:07]} ({Not} 32... bxc4 33. exd5 exd5 34. Qf5 $11) 33. Ne3 {[%emt 0:00:22]} Rc1+ {[%emt 0:00:20]} 34. Rxc1 {[%emt 0:00:03]} Qxc1+ {[%emt 0:00:05]} 35. Bf1 {[%emt 0:01:08]} Bc5 {[%emt 0:00:29]} 36. Ng4 {[%emt 0:00:14]} f5 $2 {[%emt 0:02:55]} (36... b4 $19 {is more deadly. Strongly threatening ...a5.} 37. e5 fxe5) 37. exf5 $17 {[%emt 0:00:17]} exf5 {[%emt 0:00:08]} 38. Ne3 {[%emt 0:00:18]} Bxe3 {[%emt 0:03:44]} 39. fxe3 {[%emt 0:01:50][%mdl 4096] Endgame KQB-KQN} Qc5 {[%emt 0:01:16] ...b4 is the strong threat. Black is more active.} 40. Qf3 {[%emt 0:00:59]} f4 {[%emt 0:00:29]} 41. Kf2 {[%emt 0:30:05]} a5 {[%emt 0:04:12][%cal Ba7a5,Ba5a4,Ba4a3][%mdl 32]} 42. Be2 $2 {[%emt 0:00:00]} (42. Qe4 $17 {might work better.}) 42... a4 $19 {[%emt 0:01:09]} 43. g3 {[%emt 0:00:00] [#]} fxg3+ {[%emt 0:04:12]} 44. Qxg3 {[%emt 0:00:00]} b4 {[%emt 0:00:47] White must now prevent ...b3. Black is clearly winning.} 45. Qb8 {[%emt 0:00:00]} (45. Qg4 $142 b3 46. Bc4) 45... b3 {[%emt 0:03:13]} 46. axb3 {[%emt 0:00:00]} a3 {[%emt 0:00:06] Weighted Error Value: White=0.35/Black=0.15 (very precise)} 0-1

[Event "Olomouc Chess Summer-IM 2022"]
[Site "Olomouc"]
[Date "2022.08.15"]
[Round "4.6"]
[White "Jurek, Josef"]
[Black "Kusa, Jakub"]
[Result "0-1"]
[ECO "A08"]
[WhiteElo "2200"]
[BlackElo "2353"]
[Annotator "TA"]
[PlyCount "60"]
[EventDate "2022.08.10"]
[EventCountry "CZE"]
[SourceTitle "playchess.com"]
[Source "ChessBase"]
[SourceQuality "1"]
[TimeControl "40/5400+30:1800+30"]

{[%evp 25,60,-28,-29,-89,-44,-319,-322,-352,-338,-354,-357,-358,-342,-348,-337,-444,-442,-456,-462,-487,-474,-477,-453,-589,-524,-728,-355,-344,-335,-579,-561,-790,-776,-735,-587,-587,-575]} 1. Nf3 {[%emt 0:00:08]} e6 {[%emt 0:00:17]} 2. g3 {[%emt 0:01:29]} d5 {[%emt 0:00:17]} 3. Bg2 {[%emt 0:00:22]} Nf6 {[%emt 0:00:43]} 4. O-O {[%emt 0:00:47]} c5 {[%emt 0:00:39]} 5. d3 {[%emt 0:04:37]} Nc6 {[%emt 0:00:54]} 6. Nbd2 {[%emt 0:00:14]} Be7 {[%emt 0:01:11]} 7. e4 {[%emt 0:00:21]} O-O {[%emt 0:01:17]} 8. Re1 {[%emt 0:00:56]} Qc7 {[%emt 0:03:43]} 9. e5 {[%emt 0:01:01]} Nd7 {[%emt 0:00:43]} 10. Qe2 {[%emt 0:00:23]} b5 {[%emt 0:01:30]} 11. h4 {[%emt 0:01:28]} b4 {[%emt 0:02:23]} 12. Nf1 {[%emt 0:01:51]} a5 {[%emt 0:11:12]} 13. Bf4 {[%emt 0:00:57]} Ba6 {[%emt 0:02:45]} 14. Ng5 {[%emt 0:16:41] C00: French: Unusual White 2nd moves.} (14. Ne3 $11 {remains equal.}) 14... Nd4 {[%emt 0:26:22] [#]} 15. Qh5 $146 {[%emt 0:00:48][%mdl 8192] [#]} ({White should play} 15. Qd1 $15) ({Predecessor:} 15. Qd2 a4 16. c3 Nc6 17. Rac1 c4 18. Ne3 Nb6 19. dxc4 bxc3 20. bxc3 Nxc4 21. Qc2 Bxg5 22. hxg5 Nxe3 23. Rxe3 {1-0 (40) Langheinrich,F (2215)-Jordan,R (2175) Germany 1998}) 15... Bxg5 $19 {[%emt 0:02:45]} ({Weaker is} 15... h6 16. Bxd5 hxg5 17. Be4 $17) 16. hxg5 {[%emt 0:01:48] Black has a decisive advantage.} Nxc2 {[%emt 0:01:28]} 17. Ne3 {[%emt 0:06:14]} Nxe1 {[%emt 0:02:56]} 18. Rxe1 {[%emt 0:02:29][%cal Oe3d5]} Bxd3 {[%emt 0:00:32]} 19. Nxd5 {[%emt 0:02:25]} exd5 {[%emt 0:01:02]} 20. e6 {[%emt 0:00:26]} Qc6 {[%emt 0:01:39]} 21. exd7 {[%emt 0:01:48]} Qxd7 {[%emt 0:00:40]} 22. Re5 {[%emt 0:04:15]} Be4 {[%emt 0:03:50]} 23. Bxe4 {[%emt 0:04:16]} dxe4 {[%emt 0:00:12]} 24. Rxc5 {[%emt 0:03:24]} Rfd8 {[%emt 0:01:37][%cal Bf8d8,Bd8d1,Bd1d2,Bd2b2][%mdl 32]} 25. Kg2 {[%emt 0:06:17]} Qd1 {[%emt 0:01:01]} (25... Rac8 $142 26. Be3 Rxc5 27. Bxc5 Rc8) 26. Qxd1 {[%emt 0:00:49]} Rxd1 {[%emt 0:00:05]} 27. Bc7 $2 {[%emt 0:01:50] [#]} (27. a3) 27... Rd2 {[%emt 0:01:23] Black is clearly winning.} 28. Re5 {[%emt 0:01:01]} a4 {[%emt 0:02:39]} 29. Rxe4 {[%emt 0:01:09]} Rxb2 {[%emt 0:01:40]} 30. Bd6 {[%emt 0:00:27]} b3 {[%emt 0:00:55] Black took control after the opening.  Weighted Error Value: White=0.97/Black=0.31} 0-1

[Event "Olomouc Chess Summer-IM 2022"]
[Site "Olomouc"]
[Date "2022.08.15"]
[Round "4.7"]
[White "Nagy, Ladislav"]
[Black "Nytra, Ondrej"]
[Result "1/2-1/2"]
[ECO "C50"]
[WhiteElo "2209"]
[BlackElo "2214"]
[Annotator "NA RC"]
[PlyCount "67"]
[EventDate "2022.08.10"]
[EventCountry "CZE"]
[SourceTitle "playchess.com"]
[Source "ChessBase"]
[SourceQuality "1"]
[TimeControl "40/5400+30:1800+30"]

1. e4 {[%emt 0:00:04]} e5 {[%emt 0:00:05]} 2. Bc4 {[%emt 0:00:19]} Nf6 {[%emt 0:00:13]} 3. d3 {[%emt 0:00:30]} Nc6 {[%emt 0:00:04]} 4. Nf3 {[%emt 0:00:19]} Bc5 {[%emt 0:00:09]} 5. O-O {[%emt 0:00:46]} O-O {[%emt 0:00:10]} 6. Bg5 {[%emt 0:01:33]} h6 {[%emt 0:06:04]} 7. Bh4 {[%emt 0:00:40]} Be7 {[%emt 0:00:22]} 8. Bg3 {[%emt 0:06:24]} d6 {[%emt 0:01:01]} 9. a4 {[%emt 0:02:52]} Bg4 {[%emt 0:06:57]} 10. h3 {[%emt 0:04:50]} Be6 {[%emt 0:03:02]} 11. Nbd2 {[%emt 0:02:27]} Nd7 {[%emt 0:06:03]} 12. c3 {[%emt 0:17:08]} Kh8 {[%emt 0:00:33]} 13. b4 {[%emt 0:08:31]} Qe8 {[%emt 0:04:13]} 14. b5 {[%emt 0:10:34]} Na5 {[%emt 0:00:41]} 15. Bxe6 {[%emt 0:03:00]} fxe6 {[%emt 0:00:04]} 16. d4 {[%emt 0:05:29]} exd4 {[%emt 0:00:07]} 17. cxd4 {[%emt 0:01:56]} c5 {[%emt 0:03:37]} 18. d5 {[%emt 0:08:52]} e5 {[%emt 0:04:04]} 19. Nb3 {[%emt 0:03:14]} Nxb3 {[%emt 0:01:23]} 20. Qxb3 {[%emt 0:00:02]} Qg6 {[%emt 0:00:09]} 21. Qd3 {[%emt 0:05:00]} Rf7 {[%emt 0:14:46]} 22. Nd2 {[%emt 0:02:15]} Raf8 {[%emt 0:01:53]} 23. Qe2 {[%emt 0:02:10]} Nf6 {[%emt 0:07:28]} 24. Ra3 {[%emt 0:03:33]} Bd8 {[%emt 0:03:53]} 25. a5 {[%emt 0:01:51]} Nh5 {[%emt 0:00:37]} 26. Bh2 {[%emt 0:05:39]} Bh4 {[%emt 0:00:41]} 27. Rf3 {[%emt 0:01:09]} Rxf3 {[%emt 0:09:16]} 28. Nxf3 {[%emt 0:00:03]} Bd8 {[%emt 0:00:05]} 29. Ra1 {[%emt 0:00:51]} b6 {[%emt 0:00:56]} 30. a6 {[%emt 0:00:48]} Bg5 {[%emt 0:00:20]} 31. Ne1 {[%emt 0:02:08]} Bh4 {[%emt 0:08:07]} 32. Nf3 {[%emt 0:00:10]} Bg5 {[%emt 0:00:41]} 33. Ne1 {[%emt 0:01:13]} Bh4 {[%emt 0:00:58]} 34. Nf3 {[%emt 0:00:38]} 1/2-1/2

[Event "Olomouc Chess Summer-IM 2022"]
[Site "Olomouc"]
[Date "2022.08.15"]
[Round "4.8"]
[White "Lalic, Bogdan"]
[Black "Gimenez Menchon, Cesar"]
[Result "1/2-1/2"]
[ECO "E94"]
[WhiteElo "2412"]
[BlackElo "2207"]
[Annotator "TA"]
[PlyCount "55"]
[EventDate "2022.08.10"]
[EventCountry "CZE"]
[SourceTitle "playchess.com"]
[Source "ChessBase"]
[SourceQuality "1"]
[TimeControl "40/5400+30:1800+30"]

{[%evp 22,55,0,0,21,6,20,1,4,0,0,0,5,8,13,-8,0,0,0,0,0,0,17,8,87,0,0,-1,0,0,0,0,0,0,-3,-19]} 1. c4 {[%emt 0:00:16]} Nf6 {[%emt 0:00:12]} 2. Nc3 {[%emt 0:00:08]} g6 {[%emt 0:00:10]} 3. e4 {[%emt 0:00:35]} d6 {[%emt 0:00:06]} 4. d4 {[%emt 0:00:10]} Nbd7 {[%emt 0:00:23]} 5. Nf3 {[%emt 0:00:37]} e5 {[%emt 0:00:20]} 6. Be2 {[%emt 0:00:13]} Bg7 {[%emt 0:00:11]} 7. O-O {[%emt 0:00:14]} O-O {[%emt 0:00:10]} 8. Qc2 {[%emt 0:00:15]} c6 {[%emt 0:02:07]} 9. Be3 {[%emt 0:01:17]} Qe7 {[%emt 0:00:08]} 10. Rfe1 {[%emt 0:02:05]} exd4 {[%emt 0:00:30]} 11. Bxd4 {[%emt 0:04:55]} Re8 {[%emt 0:00:26]} 12. Rad1 {[%emt 0:02:16]} b6 {[%emt 0:04:38] E94: King's Indian: Classical: 6 Be2 e5 7 0-0: Various Black 7th moves.} 13. Bf1 {[%emt 0:09:10] [#]} Bb7 $146 {[%emt 0:01:14]} ({Predecessor:} 13... Ne5 14. Nxe5 dxe5 15. Be3 Ng4 16. Bc1 Be6 17. h3 Nf6 18. Be3 Rad8 19. a4 Nd7 20. a5 {0-1 (44) Fressinet,L (2664)-Shchekachev,A (2532) Livry Gargan 2009}) 14. e5 {[%emt 0:02:05]} dxe5 {[%emt 0:08:15]} 15. Nxe5 {[%emt 0:00:07]} Nxe5 {[%emt 0:03:44]} 16. Rxe5 {[%emt 0:00:08]} Qc7 {[%emt 0:02:45]} 17. Rxe8+ {[%emt 0:01:59]} Rxe8 {[%emt 0:00:46]} 18. h3 {[%emt 0:00:10]} Rd8 {[%emt 0:10:17][%cal Of6g4]} 19. Be5 {[%emt 0:01:20]} Qe7 {[%emt 0:00:54] [#] Threatens to win with ...Rxd1.} 20. Rxd8+ {[%emt 0:00:37]} Qxd8 {[%emt 0:00:05]} 21. c5 {[%emt 0:01:02]} Qe7 {[%emt 0:03:26]} 22. Bd6 {[%emt 0:00:29]} Qe1 {[%emt 0:00:25]} (22... Qe6 $11) 23. Qe2 {[%emt 0:01:20]} (23. Qa4 $16 Ne8 24. Bg3) 23... Qxe2 $1 $11 {[%emt 0:00:34] The position is equal.} 24. Bxe2 {[%emt 0:00:07]} Nd7 {[%emt 0:02:05]} 25. cxb6 {[%emt 0:01:07]} axb6 {[%emt 0:00:31]} 26. a4 {[%emt 0:00:30]} Bd4 {[%emt 0:03:07]} 27. Bc7 {[%emt 0:04:25]} Kf8 {[%emt 0:04:38]} 28. a5 {[%emt 0:06:28] Weighted Error Value: White=0.19 (very precise) /Black=0.15 (very precise)} 1/2-1/2